[Event "GER-ch Youth U12W 2020"]
[Site "Willingen"]
[Date "2020.10.31"]
[Round "7.2"]
[White "Trunz, Michelle"]
[Black "Wilmink, Anna"]
[Result "1-0"]
[ECO "A40"]
[WhiteElo "1662"]
[BlackElo "1608"]
[Annotator "NA RC"]
[PlyCount "159"]
[EventDate "2020.10.27"]
[EventType "swiss"]
[EventRounds "7"]
[EventCountry "GER"]
[SourceTitle "playchess.com"]
[Source "ChessBase"]
[SourceQuality "1"]
[TimeControl "40/5400+30:1800+30"]

1. d4 {[%emt 0:00:00]} g6 {[%emt 0:00:00]} 2. c4 {[%emt 0:00:00]} Bg7 {[%emt 0:00:00]} 3. Nc3 {[%emt 0:00:00]} c5 {[%emt 0:00:00]} 4. e3 {[%emt 0:03:46]} Nf6 {[%emt 0:01:21]} 5. Nf3 {[%emt 0:00:23]} cxd4 {[%emt 0:00:31]} 6. exd4 {[%emt 0:01:08]} d5 {[%emt 0:00:48]} 7. c5 {[%emt 0:01:36]} O-O {[%emt 0:02:16]} 8. Bd3 {[%emt 0:00:55]} Nc6 {[%emt 0:00:54]} 9. a3 {[%emt 0:02:22]} a6 {[%emt 0:01:35]} 10. O-O {[%emt 0:00:50]} Bg4 {[%emt 0:01:10]} 11. Be3 {[%emt 0:01:15]} e5 {[%emt 0:11:45]} 12. Be2 {[%emt 0:01:24]} e4 {[%emt 0:04:02]} 13. Nd2 {[%emt 0:01:38]} Bxe2 {[%emt 0:01:34]} 14. Nxe2 {[%emt 0:01:16]} Ng4 {[%emt 0:03:08]} 15. Qb3 {[%emt 0:09:11]} Nxe3 {[%emt 0:04:40]} 16. Qxe3 {[%emt 0:02:07]} Qd7 {[%emt 0:04:40]} 17. b4 {[%emt 0:04:37]} Rac8 {[%emt 0:07:44]} 18. Nb3 {[%emt 0:01:16]} Rb8 {[%emt 0:03:00]} 19. Rab1 {[%emt 0:02:34]} Rfc8 {[%emt 0:05:47]} 20. Rfd1 {[%emt 0:03:07]} f5 {[%emt 0:04:04]} 21. Na1 {[%emt 0:03:51]} b5 {[%emt 0:05:42]} 22. cxb6 {[%emt 0:09:21]} Rxb6 {[%emt 0:00:23]} 23. Nb3 {[%emt 0:00:29]} Rcb8 {[%emt 0:02:20]} 24. Nc5 {[%emt 0:00:15]} Qe7 {[%emt 0:02:03]} 25. Rbc1 {[%emt 0:05:23]} Na7 {[%emt 0:03:34]} 26. Qb3 {[%emt 0:03:47]} Rd8 {[%emt 0:04:13]} 27. Nc3 {[%emt 0:02:56]} Rbd6 {[%emt 0:01:21]} 28. a4 {[%emt 0:08:29]} Qf7 {[%emt 0:02:24]} 29. b5 {[%emt 0:04:14]} axb5 {[%emt 0:04:03]} 30. axb5 {[%emt 0:00:18]} Rb8 {[%emt 0:00:30]} 31. Qa4 {[%emt 0:04:40]} Nc8 {[%emt 0:02:10]} 32. Ra1 {[%emt 0:02:50]} Nb6 {[%emt 0:01:57]} 33. Qb4 {[%emt 0:01:31]} Nc4 {[%emt 0:01:48]} 34. Ra4 {[%emt 0:02:48]} Rdd8 {[%emt 0:01:33]} 35. Na6 {[%emt 0:03:43]} Rb6 {[%emt 0:01:15]} 36. Nc5 {[%emt 0:01:13]} Rbb8 {[%emt 0:00:57]} 37. Ra6 {[%emt 0:01:11]} Re8 {[%emt 0:01:47]} 38. Ne2 {[%emt 0:00:52]} e3 {[%emt 0:03:49]} 39. f3 {[%emt 0:01:00]} Bf8 {[%emt 0:02:31]} 40. Rda1 {[%emt 0:01:34]} f4 {[%emt 0:05:01]} 41. Ra7 {[%emt 0:35:48]} Qf5 {[%emt 0:31:15]} 42. Qb1 {[%emt 0:02:34]} Qxb1+ {[%emt 0:00:00]} 43. Rxb1 {[%emt 0:00:00]} Bxc5 {[%emt 0:00:00]} 44. dxc5 {[%emt 0:00:00]} Rec8 {[%emt 0:00:00]} 45. b6 {[%emt 0:00:00]} Ne5 {[%emt 0:00:00]} 46. b7 {[%emt 0:00:00]} Rxc5 {[%emt 0:00:00]} 47. Ra8 {[%emt 0:00:00]} Nd7 {[%emt 0:00:00]} 48. h3 {[%emt 0:00:00]} Kf7 {[%emt 0:00:00]} 49. Nxf4 {[%emt 0:00:00]} Rc7 {[%emt 0:00:00]} 50. Rxb8 {[%emt 0:00:00]} Nxb8 {[%emt 0:00:00]} 51. Nxd5 {[%emt 0:00:00]} Rd7 {[%emt 0:00:00]} 52. Nxe3 {[%emt 0:00:00]} Ke7 {[%emt 0:00:00]} 53. Rb2 {[%emt 0:00:00]} Kd6 {[%emt 0:00:00]} 54. Kf2 {[%emt 0:00:00]} Kc6 {[%emt 0:00:00]} 55. Ng4 {[%emt 0:00:00]} Rxb7 {[%emt 0:00:00]} 56. Rxb7 {[%emt 0:00:00]} Kxb7 {[%emt 0:00:00]} 57. Nf6 {[%emt 0:00:00]} h5 {[%emt 0:00:00]} 58. Kg3 {[%emt 0:00:00]} Kc7 {[%emt 0:00:00]} 59. Kf4 {[%emt 0:00:00]} Nc6 {[%emt 0:00:00]} 60. Kg5 {[%emt 0:00:00]} Ne7 {[%emt 0:00:00]} 61. Nh7 {[%emt 0:00:00]} Kd8 {[%emt 0:00:00]} 62. Nf8 {[%emt 0:00:00]} Nf5 {[%emt 0:00:00]} 63. Nxg6 {[%emt 0:00:00]} Ne3 {[%emt 0:00:00]} 64. Nf4 {[%emt 0:00:00]} Ke8 {[%emt 0:00:00]} 65. Kxh5 {[%emt 0:00:00]} Kf8 {[%emt 0:00:00]} 66. g4 {[%emt 0:00:00]} Kg8 {[%emt 0:00:16]} 67. Kg5 {[%emt 0:00:00]} Kh8 {[%emt 0:00:13]} 68. Ng6+ {[%emt 0:00:00]} Kg7 {[%emt 0:00:11]} 69. f4 {[%emt 0:00:00]} Nd5 {[%emt 0:00:15]} 70. f5 {[%emt 0:00:00]} Kf7 {[%emt 0:00:17]} 71. h4 {[%emt 0:00:00]} Kg7 {[%emt 0:00:30]} 72. h5 {[%emt 0:00:00]} Kh7 {[%emt 0:00:19]} 73. f6 {[%emt 0:00:00]} Nxf6 {[%emt 0:00:34]} 74. Kxf6 {[%emt 0:00:00]} Kh6 {[%emt 0:00:21]} 75. g5+ {[%emt 0:00:00]} Kh7 {[%emt 0:00:29]} 76. Nf4 {[%emt 0:00:00]} Kg8 {[%emt 0:00:09]} 77. g6 {[%emt 0:00:00]} Kh8 {[%emt 0:00:08]} 78. g7+ {[%emt 0:00:00]} Kg8 {[%emt 0:00:08]} 79. Ng2 {[%emt 0:00:00]} Kh7 {[%emt 0:00:08]} 80. Kf7 {[%emt 0:00:00]} 1-0

[Event "GER-ch Youth U12W 2020"]
[Site "Willingen"]
[Date "2020.10.31"]
[Round "7.3"]
[White "Peglau, Charis"]
[Black "Fischer, Juliane"]
[Result "1-0"]
[ECO "B37"]
[WhiteElo "1768"]
[BlackElo "1509"]
[Annotator "NA RC"]
[PlyCount "102"]
[EventDate "2020.10.27"]
[EventType "swiss"]
[EventRounds "7"]
[EventCountry "GER"]
[SourceTitle "playchess.com"]
[Source "ChessBase"]
[SourceQuality "1"]
[TimeControl "40/5400+30:1800+30"]

1. e4 {[%emt 0:00:00]} c5 {[%emt 0:00:00]} 2. Nf3 {[%emt 0:00:00]} g6 {[%emt 0:00:00]} 3. d4 {[%emt 0:00:00]} cxd4 {[%emt 0:00:03]} 4. Nxd4 {[%emt 0:00:00]} Bg7 {[%emt 0:00:14]} 5. c4 {[%emt 0:00:21]} Nc6 {[%emt 0:00:20]} 6. Nc2 {[%emt 0:01:23]} Nf6 {[%emt 0:01:14]} 7. Nc3 {[%emt 0:00:06]} O-O {[%emt 0:01:02]} 8. Be2 {[%emt 0:00:24]} d6 {[%emt 0:01:37]} 9. O-O {[%emt 0:00:25]} Nd7 {[%emt 0:01:56]} 10. Bd2 {[%emt 0:00:26]} Nc5 {[%emt 0:01:43]} 11. f3 {[%emt 0:00:36]} e6 {[%emt 0:06:29]} 12. Rb1 {[%emt 0:03:13]} a5 {[%emt 0:01:07]} 13. Kh1 {[%emt 0:03:03]} Be5 {[%emt 0:01:20]} 14. g3 {[%emt 0:20:10]} f5 {[%emt 0:18:00]} 15. exf5 {[%emt 0:03:28]} Rxf5 {[%emt 0:01:38]} 16. f4 {[%emt 0:00:30]} Bg7 {[%emt 0:05:45]} 17. Bg4 {[%emt 0:02:32]} Rf8 {[%emt 0:00:58]} 18. Be3 {[%emt 0:05:31]} Bxc3 {[%emt 0:03:41]} 19. bxc3 {[%emt 0:00:26]} Ne4 {[%emt 0:00:13]} 20. Qd3 {[%emt 0:03:07]} Nc5 {[%emt 0:04:19]} 21. Qe2 {[%emt 0:00:38]} Qc7 {[%emt 0:10:27]} 22. Bxc5 {[%emt 0:09:38]} dxc5 {[%emt 0:00:41]} 23. Bxe6+ {[%emt 0:00:24]} Bxe6 {[%emt 0:00:33]} 24. Qxe6+ {[%emt 0:00:04]} Kh8 {[%emt 0:01:06]} 25. Rfe1 {[%emt 0:03:32]} Rad8 {[%emt 0:02:40]} 26. Qe3 {[%emt 0:04:13]} b6 {[%emt 0:05:48]} 27. Qe4 {[%emt 0:07:10]} Rd2 {[%emt 0:09:09]} 28. a3 {[%emt 0:06:12]} Rf7 {[%emt 0:06:55]} 29. Ne3 {[%emt 0:05:58]} Re7 {[%emt 0:01:13]} 30. Qf3 {[%emt 0:00:18]} Rd3 {[%emt 0:00:50]} 31. Qf2 {[%emt 0:00:21]} Rd8 {[%emt 0:03:03]} 32. Nd5 {[%emt 0:00:33]} Rxe1+ {[%emt 0:00:33]} 33. Qxe1 {[%emt 0:00:13]} Qa7 {[%emt 0:01:16]} 34. Qe6 {[%emt 0:01:29]} Qd7 {[%emt 0:01:03]} 35. Qxd7 {[%emt 0:00:55]} Rxd7 {[%emt 0:00:06]} 36. Rxb6 {[%emt 0:00:48]} Ne7 {[%emt 0:00:34]} 37. Nxe7 {[%emt 0:00:34]} Rxe7 {[%emt 0:00:03]} 38. Rb5 {[%emt 0:00:37]} Re3 {[%emt 0:00:09]} 39. Rxc5 {[%emt 0:01:14]} Rxc3 {[%emt 0:00:08]} 40. a4 {[%emt 0:00:05]} Kg7 {[%emt 0:00:31]} 41. Kg2 {[%emt 0:30:24]} Kf6 {[%emt 0:30:25]} 42. g4 {[%emt 0:02:12]} Ke6 {[%emt 0:00:26]} 43. h3 {[%emt 0:08:38]} Kd6 {[%emt 0:00:39]} 44. Rxa5 {[%emt 0:00:29]} Rxc4 {[%emt 0:00:17]} 45. Kg3 {[%emt 0:00:19]} Kc6 {[%emt 0:01:35]} 46. Ra7 {[%emt 0:00:24]} Kd5 {[%emt 0:00:31]} 47. Rxh7 {[%emt 0:02:36]} Rxa4 {[%emt 0:00:13]} 48. Re7 {[%emt 0:00:18]} Kd6 {[%emt 0:00:19]} 49. Rg7 {[%emt 0:00:11]} Ra3+ {[%emt 0:00:18]} 50. Kh4 {[%emt 0:00:11]} Rf3 {[%emt 0:00:14]} 51. Rxg6+ {[%emt 0:00:23]} Kd5 1-0

[Event "GER-ch Youth U12W 2020"]
[Site "Willingen"]
[Date "2020.10.31"]
[Round "7.4"]
[White "Schwenke, Mia"]
[Black "Bräutigam, Katerina"]
[Result "0-1"]
[ECO "C54"]
[WhiteElo "1265"]
[BlackElo "1744"]
[Annotator "NA RC"]
[PlyCount "116"]
[EventDate "2020.10.27"]
[EventType "swiss"]
[EventRounds "7"]
[EventCountry "GER"]
[SourceTitle "playchess.com"]
[Source "ChessBase"]
[SourceQuality "1"]
[TimeControl "40/5400+30:1800+30"]

1. e4 {[%emt 0:00:00]} e5 {[%emt 0:00:00]} 2. Nf3 {[%emt 0:00:00]} Nc6 {[%emt 0:00:00]} 3. Bc4 {[%emt 0:00:00]} Bc5 {[%emt 0:00:00]} 4. c3 {[%emt 0:00:00]} Nf6 {[%emt 0:00:00]} 5. d3 {[%emt 0:00:00]} d6 {[%emt 0:00:24]} 6. O-O {[%emt 0:00:13]} h6 {[%emt 0:01:37]} 7. Nbd2 {[%emt 0:00:47]} g5 {[%emt 0:00:22]} 8. b4 {[%emt 0:07:29]} Bb6 {[%emt 0:01:48]} 9. a4 {[%emt 0:05:40]} a6 {[%emt 0:12:47]} 10. Re1 {[%emt 0:07:41]} Be6 {[%emt 0:14:17]} 11. Bb3 {[%emt 0:02:24]} Nd7 {[%emt 0:14:39]} 12. Nf1 {[%emt 0:03:35]} g4 {[%emt 0:05:12]} 13. N3d2 {[%emt 0:06:07]} Qf6 {[%emt 0:01:35]} 14. Ne3 {[%emt 0:02:56]} h5 {[%emt 0:05:33]} 15. Ndf1 {[%emt 0:06:22]} Ne7 {[%emt 0:06:40]} 16. Bb2 {[%emt 0:10:28]} Rg8 {[%emt 0:05:46]} 17. Bxe6 {[%emt 0:06:17]} fxe6 {[%emt 0:00:20]} 18. Qe2 {[%emt 0:04:34]} Ng6 {[%emt 0:00:52]} 19. g3 {[%emt 0:02:39]} Ke7 {[%emt 0:01:28]} 20. a5 {[%emt 0:01:46]} Ba7 {[%emt 0:04:10]} 21. Rac1 {[%emt 0:01:00]} Ngf8 {[%emt 0:05:41]} 22. Rc2 {[%emt 0:02:15]} Nh7 {[%emt 0:00:22]} 23. Rd1 {[%emt 0:03:41]} Ng5 {[%emt 0:00:43]} 24. Kg2 {[%emt 0:02:24]} Raf8 {[%emt 0:02:21]} 25. Ba3 {[%emt 0:02:02]} Nf3 {[%emt 0:01:46]} 26. Rb1 {[%emt 0:03:17]} h4 {[%emt 0:07:20]} 27. Rbb2 {[%emt 0:01:07]} Rg7 {[%emt 0:01:19]} 28. c4 {[%emt 0:02:12]} Nd4 {[%emt 0:02:17]} 29. Qd1 {[%emt 0:00:41]} Nxc2 {[%emt 0:00:20]} 30. Rxc2 {[%emt 0:00:10]} Qg5 {[%emt 0:03:22]} 31. Bc1 {[%emt 0:01:04]} Qh5 {[%emt 0:00:23]} 32. Qe1 {[%emt 0:02:24]} Rh7 {[%emt 0:01:23]} 33. Kh1 {[%emt 0:02:13]} Qf7 {[%emt 0:00:53]} 34. Qe2 {[%emt 0:00:59]} hxg3 {[%emt 0:00:42]} 35. fxg3 {[%emt 0:00:30]} Bxe3 {[%emt 0:00:27]} 36. Nxe3 {[%emt 0:00:13]} Qf3+ {[%emt 0:00:33]} 37. Qxf3 {[%emt 0:00:12]} gxf3 {[%emt 0:00:14]} 38. Rf2 {[%emt 0:00:17]} Rfh8 {[%emt 0:00:42]} 39. Nf1 {[%emt 0:01:02]} Rf7 {[%emt 0:00:18]} 40. Bg5+ {[%emt 0:00:45]} Ke8 {[%emt 0:00:14]} 41. Nd2 {[%emt 0:30:14]} c5 {[%emt 0:03:37]} 42. b5 {[%emt 0:00:00]} Nf6 {[%emt 0:00:50]} 43. Bxf6 {[%emt 0:00:00]} Rxf6 {[%emt 0:00:33]} 44. Rxf3 {[%emt 0:00:00]} Rxf3 {[%emt 0:00:20]} 45. Nxf3 {[%emt 0:00:00]} axb5 {[%emt 0:00:36]} 46. cxb5 {[%emt 0:00:00]} Ke7 {[%emt 0:00:09]} 47. Nd2 {[%emt 0:00:00]} d5 {[%emt 0:00:27]} 48. Kg2 {[%emt 0:00:00]} Ra8 {[%emt 0:01:04]} 49. a6 {[%emt 0:00:00]} bxa6 {[%emt 0:00:19]} 50. bxa6 {[%emt 0:00:00]} Rxa6 {[%emt 0:00:06]} 51. Kf3 {[%emt 0:00:00]} Ra2 {[%emt 0:00:49]} 52. Nf1 {[%emt 0:00:00]} c4 {[%emt 0:00:18]} 53. dxc4 {[%emt 0:00:00]} dxc4 {[%emt 0:00:08]} 54. h4 {[%emt 0:00:00]} c3 {[%emt 0:00:34]} 55. Ne3 {[%emt 0:00:00]} c2 {[%emt 0:00:34]} 56. Nxc2 {[%emt 0:00:00]} Rxc2 {[%emt 0:00:02]} 57. h5 {[%emt 0:00:00]} Kf6 {[%emt 0:00:22]} 58. h6 {[%emt 0:00:00]} Kg6 {[%emt 0:00:13]} 0-1

[Event "GER-ch Youth U12W 2020"]
[Site "Willingen"]
[Date "2020.10.31"]
[Round "7.5"]
[White "Haug, Mara"]
[Black "Hergenröder, Cora"]
[Result "1-0"]
[ECO "C50"]
[WhiteElo "1366"]
[BlackElo "1422"]
[Annotator "NA RC"]
[PlyCount "81"]
[EventDate "2020.10.27"]
[EventType "swiss"]
[EventRounds "7"]
[EventCountry "GER"]
[SourceTitle "playchess.com"]
[Source "ChessBase"]
[SourceQuality "1"]
[TimeControl "40/5400+30:1800+30"]

1. e4 {[%emt 0:00:00]} e5 {[%emt 0:00:00]} 2. Nf3 {[%emt 0:00:00]} Nc6 {[%emt 0:00:00]} 3. Bc4 {[%emt 0:00:02]} Be7 {[%emt 0:00:00]} 4. Nc3 {[%emt 0:01:01]} Nf6 {[%emt 0:00:03]} 5. d3 {[%emt 0:01:10]} d6 {[%emt 0:00:43]} 6. h3 {[%emt 0:03:09]} O-O {[%emt 0:02:57]} 7. O-O {[%emt 0:01:50]} Bd7 {[%emt 0:02:21]} 8. Be3 {[%emt 0:02:16]} Na5 {[%emt 0:11:17]} 9. Bd5 {[%emt 0:05:43]} c6 {[%emt 0:03:10]} 10. Bb3 {[%emt 0:03:55]} Nxb3 {[%emt 0:02:39]} 11. axb3 {[%emt 0:02:35]} Qc7 {[%emt 0:04:11]} 12. d4 {[%emt 0:07:03]} exd4 {[%emt 0:06:33]} 13. Qxd4 {[%emt 0:08:16]} c5 {[%emt 0:06:26]} 14. Qd3 {[%emt 0:03:09]} a6 {[%emt 0:04:58]} 15. Rfd1 {[%emt 0:02:46]} h6 {[%emt 0:08:57]} 16. Bf4 {[%emt 0:02:23]} Bb5 {[%emt 0:12:58]} 17. Nxb5 {[%emt 0:01:06]} axb5 {[%emt 0:00:05]} 18. Qxb5 {[%emt 0:00:30]} Nxe4 {[%emt 0:04:52]} 19. Qd3 {[%emt 0:02:23]} Rxa1 {[%emt 0:01:03]} 20. Rxa1 {[%emt 0:00:07]} Nf6 {[%emt 0:04:22]} 21. Rd1 {[%emt 0:02:10]} Rd8 {[%emt 0:05:24]} 22. Nd2 {[%emt 0:02:20]} Nh5 {[%emt 0:00:49]} 23. Bh2 {[%emt 0:01:07]} Qc6 {[%emt 0:06:14]} 24. Qe2 {[%emt 0:02:41]} Re8 {[%emt 0:08:58]} 25. Qxh5 {[%emt 0:00:41]} Bg5 {[%emt 0:00:17]} 26. Nf3 {[%emt 0:05:12]} Bf6 {[%emt 0:00:51]} 27. c3 {[%emt 0:02:30]} Qe4 {[%emt 0:01:09]} 28. Bxd6 {[%emt 0:02:20]} Rd8 {[%emt 0:01:04]} 29. Re1 {[%emt 0:01:41]} Qc2 {[%emt 0:00:43]} 30. Bxc5 {[%emt 0:04:00]} Qxb3 {[%emt 0:00:22]} 31. Ba3 {[%emt 0:02:04]} Bxc3 {[%emt 0:01:23]} 32. Re3 {[%emt 0:04:49]} Qd1+ {[%emt 0:00:29]} 33. Kh2 {[%emt 0:00:12]} Bd4 {[%emt 0:00:24]} 34. Re1 {[%emt 0:03:28]} Qc2 {[%emt 0:00:26]} 35. Nxd4 {[%emt 0:01:06]} Rxd4 {[%emt 0:00:27]} 36. Re8+ {[%emt 0:00:55]} Kh7 {[%emt 0:00:05]} 37. Qxf7 {[%emt 0:00:44]} Rd2 {[%emt 0:01:10]} 38. Qg8+ {[%emt 0:02:17]} Kg6 {[%emt 0:00:06]} 39. Re6+ {[%emt 0:00:37]} Kf5 {[%emt 0:00:04]} 40. Qf7+ {[%emt 0:00:39]} Kg5 {[%emt 0:00:25]} 41. Be7# {[%emt 0:30:21]} 1-0

[Event "GER-ch Youth U12W 2020"]
[Site "Willingen"]
[Date "2020.10.31"]
[Round "7.6"]
[White "Peglau, Dora"]
[Black "Fock, Madiha"]
[Result "1-0"]
[ECO "D37"]
[WhiteElo "1683"]
[BlackElo "1258"]
[Annotator "NA RC"]
[PlyCount "69"]
[EventDate "2020.10.27"]
[EventType "swiss"]
[EventRounds "7"]
[EventCountry "GER"]
[SourceTitle "playchess.com"]
[Source "ChessBase"]
[SourceQuality "1"]
[TimeControl "40/5400+30:1800+30"]

1. d4 {[%emt 0:00:00]} d5 {[%emt 0:00:00]} 2. c4 {[%emt 0:00:00]} e6 {[%emt 0:00:00]} 3. Nf3 {[%emt 0:00:00]} Nf6 {[%emt 0:00:12]} 4. Nc3 {[%emt 0:00:22]} Be7 {[%emt 0:01:10]} 5. Bf4 {[%emt 0:00:40]} O-O {[%emt 0:05:34]} 6. e3 {[%emt 0:00:19]} c6 {[%emt 0:00:59]} 7. Bd3 {[%emt 0:00:26]} Nbd7 {[%emt 0:05:38]} 8. cxd5 {[%emt 0:00:30]} exd5 {[%emt 0:00:55]} 9. O-O {[%emt 0:00:13]} Re8 {[%emt 0:00:45]} 10. Rb1 {[%emt 0:00:50]} Nb6 {[%emt 0:07:49]} 11. b4 {[%emt 0:02:31]} Bd6 {[%emt 0:02:21]} 12. Bxd6 {[%emt 0:00:52]} Qxd6 {[%emt 0:00:10]} 13. b5 {[%emt 0:00:56]} Ne4 {[%emt 0:06:42]} 14. Bxe4 {[%emt 0:04:35]} dxe4 {[%emt 0:01:23]} 15. Nd2 {[%emt 0:01:50]} Bf5 {[%emt 0:03:23]} 16. Qb3 {[%emt 0:02:49]} Re6 {[%emt 0:03:02]} 17. bxc6 {[%emt 0:01:23]} Rh6 {[%emt 0:07:45]} 18. g3 {[%emt 0:05:27]} Qxc6 {[%emt 0:03:36]} 19. Rfc1 {[%emt 0:02:37]} Be6 {[%emt 0:06:23]} 20. Qd1 {[%emt 0:05:38]} Bd5 {[%emt 0:07:19]} 21. Nxd5 {[%emt 0:08:33]} Qxd5 {[%emt 0:00:38]} 22. Rc5 {[%emt 0:02:07]} Qe6 {[%emt 0:04:21]} 23. Qc2 {[%emt 0:06:35]} Qh3 {[%emt 0:06:35]} 24. Nf1 {[%emt 0:02:17]} Qg4 {[%emt 0:05:04]} 25. Re5 {[%emt 0:05:11]} Re6 {[%emt 0:00:51]} 26. Rc5 {[%emt 0:05:13]} Re7 {[%emt 0:01:19]} 27. Rc7 {[%emt 0:00:32]} Rxc7 {[%emt 0:00:12]} 28. Qxc7 {[%emt 0:00:01]} Qd7 {[%emt 0:00:07]} 29. Qxd7 {[%emt 0:02:44]} Nxd7 {[%emt 0:00:06]} 30. Rxb7 {[%emt 0:00:06]} Nf6 {[%emt 0:05:18]} 31. Nd2 {[%emt 0:01:51]} Kf8 {[%emt 0:00:33]} 32. Nc4 {[%emt 0:01:23]} Ne8 {[%emt 0:03:35]} 33. g4 {[%emt 0:06:31]} g5 {[%emt 0:02:13]} 34. Ne5 {[%emt 0:00:45]} Nd6 {[%emt 0:03:03]} 35. Rd7 {[%emt 0:01:42]} 1-0

[Event "GER-ch Youth U12W 2020"]
[Site "Willingen"]
[Date "2020.10.31"]
[Round "7.7"]
[White "Bangiev, Katharina"]
[Black "Lorenz, Veronika"]
[Result "0-1"]
[ECO "C47"]
[WhiteElo "1539"]
[BlackElo "1273"]
[Annotator "NA RC"]
[PlyCount "50"]
[EventDate "2020.10.27"]
[EventType "swiss"]
[EventRounds "7"]
[EventCountry "GER"]
[SourceTitle "playchess.com"]
[Source "ChessBase"]
[SourceQuality "1"]
[TimeControl "40/5400+30:1800+30"]

1. e4 {[%emt 0:00:00]} e5 {[%emt 0:00:00]} 2. Nf3 {[%emt 0:00:00]} Nc6 {[%emt 0:00:00]} 3. Nc3 {[%emt 0:00:00]} Nf6 {[%emt 0:00:00]} 4. g3 {[%emt 0:00:00]} d5 {[%emt 0:00:16]} 5. exd5 {[%emt 0:00:05]} Nxd5 {[%emt 0:00:08]} 6. Bg2 {[%emt 0:00:46]} Nxc3 {[%emt 0:00:12]} 7. bxc3 {[%emt 0:00:11]} Bc5 {[%emt 0:00:29]} 8. O-O {[%emt 0:01:21]} O-O {[%emt 0:00:12]} 9. Re1 {[%emt 0:01:15]} Bg4 {[%emt 0:00:36]} 10. h3 {[%emt 0:00:39]} Bh5 {[%emt 0:00:09]} 11. g4 {[%emt 0:00:15]} Bg6 {[%emt 0:00:37]} 12. Nxe5 {[%emt 0:00:10]} Nxe5 {[%emt 0:00:08]} 13. Rxe5 {[%emt 0:00:11]} Bd6 {[%emt 0:00:15]} 14. Re1 {[%emt 0:00:27]} Qh4 {[%emt 0:00:15]} 15. d4 {[%emt 0:01:45]} f5 {[%emt 0:00:45]} 16. Rf1 {[%emt 0:02:53]} f4 {[%emt 0:16:02]} 17. Qf3 {[%emt 0:11:51]} Bxc2 {[%emt 0:07:57]} 18. c4 {[%emt 0:09:02]} c6 {[%emt 0:18:50]} 19. Re1 {[%emt 0:05:49]} Bb4 {[%emt 0:04:25]} 20. Re2 {[%emt 0:01:21]} Bd1 {[%emt 0:02:13]} 21. Rb1 {[%emt 0:11:14]} Bxe2 {[%emt 0:08:25]} 22. Qxe2 {[%emt 0:00:06]} a5 {[%emt 0:01:49]} 23. a3 {[%emt 0:04:28]} Rae8 {[%emt 0:04:42]} 24. Qf3 {[%emt 0:03:04]} Re1+ {[%emt 0:00:42]} 25. Bf1 {[%emt 0:00:05]} Bd2 {[%emt 0:02:16]} 0-1

[Event "GER-ch Youth U12W 2020"]
[Site "Willingen"]
[Date "2020.10.31"]
[Round "7.8"]
[White "Rodermel, Leonie"]
[Black "Petrosyan, Ani"]
[Result "1/2-1/2"]
[ECO "B18"]
[WhiteElo "1370"]
[BlackElo "1370"]
[Annotator "NA RC"]
[PlyCount "115"]
[EventDate "2020.10.27"]
[EventType "swiss"]
[EventRounds "7"]
[EventCountry "GER"]
[SourceTitle "playchess.com"]
[Source "ChessBase"]
[SourceQuality "1"]
[TimeControl "40/5400+30:1800+30"]

1. e4 {[%emt 0:00:00]} c6 {[%emt 0:00:00]} 2. d4 {[%emt 0:00:00]} d5 {[%emt 0:00:00]} 3. Nc3 {[%emt 0:00:00]} dxe4 {[%emt 0:00:00]} 4. Nxe4 {[%emt 0:00:00]} Bf5 {[%emt 0:00:00]} 5. Ng3 {[%emt 0:00:00]} Bg6 {[%emt 0:00:02]} 6. h4 {[%emt 0:00:08]} h6 {[%emt 0:00:03]} 7. Nf3 {[%emt 0:00:05]} Nf6 {[%emt 0:00:15]} 8. h5 {[%emt 0:00:27]} Bh7 {[%emt 0:00:12]} 9. Bd3 {[%emt 0:00:09]} Bxd3 {[%emt 0:04:33]} 10. Qxd3 {[%emt 0:00:08]} e6 {[%emt 0:00:30]} 11. Bd2 {[%emt 0:00:25]} Qc7 {[%emt 0:01:16]} 12. O-O-O {[%emt 0:01:06]} Nbd7 {[%emt 0:00:31]} 13. Ne4 {[%emt 0:05:09]} O-O-O {[%emt 0:03:10]} 14. g3 {[%emt 0:03:11]} Nxe4 {[%emt 0:03:44]} 15. Qxe4 {[%emt 0:00:14]} Nf6 {[%emt 0:00:23]} 16. Qe2 {[%emt 0:00:47]} Bd6 {[%emt 0:02:51]} 17. Kb1 {[%emt 0:13:03]} c5 {[%emt 0:09:32]} 18. c3 {[%emt 0:11:59]} Kb8 {[%emt 0:06:52]} 19. dxc5 {[%emt 0:03:09]} Qxc5 {[%emt 0:01:58]} 20. Be3 {[%emt 0:02:06]} Qc7 {[%emt 0:09:22]} 21. Rxd6 {[%emt 0:10:12]} Rxd6 {[%emt 0:04:29]} 22. Bf4 {[%emt 0:00:09]} Ka8 {[%emt 0:02:00]} 23. Bxd6 {[%emt 0:00:39]} Qxd6 {[%emt 0:00:30]} 24. Ne5 {[%emt 0:13:14]} Qc7 {[%emt 0:02:52]} 25. Rd1 {[%emt 0:04:09]} Nd5 {[%emt 0:02:06]} 26. g4 {[%emt 0:03:34]} f6 {[%emt 0:12:49]} 27. Ng6 {[%emt 0:01:50]} Rd8 {[%emt 0:03:18]} 28. Ka1 {[%emt 0:03:54]} Ne7 {[%emt 0:01:17]} 29. Rxd8+ {[%emt 0:01:36]} Qxd8 {[%emt 0:01:17]} 30. Nxe7 {[%emt 0:00:14]} Qxe7 {[%emt 0:00:06]} 31. Qd3 {[%emt 0:04:39]} f5 {[%emt 0:02:08]} 32. f3 {[%emt 0:03:08]} fxg4 {[%emt 0:00:52]} 33. fxg4 {[%emt 0:00:07]} Qg5 {[%emt 0:00:25]} 34. Qe4 {[%emt 0:00:17]} Qc1+ {[%emt 0:00:24]} 35. Qb1 {[%emt 0:00:06]} Qxb1+ {[%emt 0:00:05]} 36. Kxb1 {[%emt 0:00:08]} Kb8 {[%emt 0:00:04]} 37. Kc2 Kc7 {[%emt 0:00:17]} 38. Kd3 {[%emt 0:00:14]} Kc6 {[%emt 0:00:52]} 39. Kd4 {[%emt 0:02:10]} Kd6 {[%emt 0:00:58]} 40. Ke4 {[%emt 0:00:16]} e5 {[%emt 0:00:30]} 41. a4 {[%emt 0:30:46]} Ke6 {[%emt 0:30:31]} 42. c4 {[%emt 0:06:56]} Kd6 {[%emt 0:04:20]} 43. Kf5 {[%emt 0:06:57]} b6 {[%emt 0:02:34]} 44. b4 {[%emt 0:00:00]} a5 {[%emt 0:00:00]} 45. bxa5 {[%emt 0:00:00]} bxa5 {[%emt 0:00:00]} 46. Ke4 {[%emt 0:00:00]} Kc5 {[%emt 0:00:00]} 47. Kxe5 {[%emt 0:00:00]} Kxc4 {[%emt 0:00:00]} 48. Kf5 {[%emt 0:00:00]} Kb4 {[%emt 0:00:00]} 49. Kg6 {[%emt 0:00:00]} Kxa4 {[%emt 0:00:00]} 50. Kxg7 {[%emt 0:00:00]} Kb4 {[%emt 0:00:00]} 51. Kxh6 {[%emt 0:00:00]} a4 {[%emt 0:00:00]} 52. g5 {[%emt 0:00:00]} a3 {[%emt 0:00:00]} 53. g6 {[%emt 0:00:00]} a2 {[%emt 0:00:00]} 54. g7 {[%emt 0:00:00]} a1=Q {[%emt 0:00:00]} 55. g8=Q {[%emt 0:00:00]} Qf6+ {[%emt 0:00:00]} 56. Qg6 {[%emt 0:00:00]} Qf4+ {[%emt 0:00:00]} 57. Qg5 {[%emt 0:00:00]} Qf8+ {[%emt 0:00:00]} 58. Qg7 {[%emt 0:00:00]} 1/2-1/2